[Event "SixDays Budapest January IM-B 2025"]
[Site "Budapest"]
[Date "2025.01.30"]
[Round "8.3"]
[White "Meers, Hubert"]
[Black "Vandan Alankar Sawai"]
[Result "1/2-1/2"]
[Annotator "TA"]
[ECO "A06"]
[WhiteElo "2198"]
[BlackElo "2177"]
[PlyCount "88"]
[EventDate "2025.01.24"]
[EventType "tourn"]
[EventCountry "HUN"]
[SourceTitle "playchess.com"]
[Source "ChessBase"]
[SourceQuality "1"]
[TimeControl "5400+30"]

{[%evp 17,88,26,33,35,31,11,81,46,47,51,44,33,43,36,26,45,37,25,31,31,40,31,61,15,16,13,15,9,25,8,16,0,0,0,0,-126,37,-40,247,260,252,253,253,260,239,237,238,0,56,0,139,127,140,127,123,125,202,206,183,0,0,0,0,0,0,0,0,0,0,0,0,0,0]} 1. Nf3 {[%emt 0:00:03]} d5 {[%emt 0:00:58]} 2. c4 {[%emt 0:00:03]} e6 {[%emt 0:05:46]} 3. e3 {[%emt 0:00:16]} Nf6 {[%emt 0:01:05]} 4. Nc3 {[%emt 0:00:45]} Be7 {[%emt 0:00:42]} 5. b3 {[%emt 0:00:59]} O-O {[%emt 0:00:53]} 6. Bb2 {[%emt 0:00:05]} c5 {[%emt 0:07:18]} 7. cxd5 {[%emt 0:00:37]} Nxd5 {[%emt 0:00:10]} 8. Nxd5 {[%emt 0:00:09]} Qxd5 {[%emt 0:00:17]} 9. Bc4 {[%emt 0:01:34]} Qd8 {[%emt 0:00:06]} 10. O-O {[%emt 0:00:24] A13: English Opening: 1...e6.} Nc6 {[%emt 0:00:07]} 11. d4 {[%emt 0:06:03]} b6 {[%emt 0:07:54]} (11... cxd4 $11 12. Nxd4 Nxd4 13. Qxd4 Qxd4 14. Bxd4 Bd7) 12. Qe2 {[%emt 0:00:26] White is better.} Bb7 {[%emt 0:01:47]} 13. Rfd1 {[%emt 0:00:49]} Qc7 {[%emt 0:00:35]} 14. Rac1 {[%emt 0:01:32]} Rad8 {[%emt 0:04:20]} 15. Bd3 $146 {[%emt 0:03:19]} (15. h3 h6 16. Bb5 Qb8 17. Bxc6 Bxc6 18. Ne5 Be8 19. dxc5 Bxc5 20. Qg4 f5 21. Qc4 {1-0 Srihari,L (2236)-Raahul,V (2260) IND-ch Rapid 2024 (8)}) 15... Nb4 {[%emt 0:19:41]} 16. Bb1 {[%emt 0:01:45]} Qb8 {[%emt 0:00:12]} 17. dxc5 {[%emt 0:01:51]} Ba6 {[%emt 0:10:26]} 18. Qe1 {[%emt 0:00:38]} bxc5 {[%emt 0:00:29]} 19. Ne5 {[%emt 0:03:49]} Qc7 {[%emt 0:03:36] Dodges Nd7} 20. Nc4 {[%emt 0:00:43]} (20. f4 $14) 20... Rxd1 $11 {[%emt 0:04:26]} 21. Qxd1 {[%emt 0:01:12]} Rd8 {[%emt 0:00:20]} 22. Qg4 {[%emt 0:10:51][%csl Gb2][%cal Rg4g7]} Bf8 {[%emt 0:01:05] Successful Defense Black} 23. Bf6 {[%emt 0:10:00] Qh4 would now be deadly.} Rd7 {[%emt 0:02:05]} 24. Ne5 $40 {[%emt 0:14:13][%mdl 128] White mounts an attack.} (24. Qe4 $5 g6 25. h3 $11) 24... Rd5 {[%emt 0:00:23]} 25. Be4 {[%emt 0:00:54]} Qd6 {[%emt 0:09:45]} 26. f4 {[%emt 0:22:29]} (26. Bxd5 exd5 (26... Nxd5 27. Qh5 $11) 27. Nd7 h5 $19 (27... Nxa2 $2 28. Be5 $18) (27... Bc8 28. Bxg7 Bxg7 29. Nf6+ Qxf6 30. Qxc8+ Bf8 31. Qg4+ Qg6 32. Qxg6+ hxg6 33. Kf1 $15)) (26. Bxh7+ $11 Kxh7 27. Qh5+ (27. Nxf7 $2 Qd7 $19) 27... Kg8 28. Qxf7+ Kh7 29. h3) 26... Rd2 $2 {[%emt 0:01:27]} (26... Rxe5 $1 $17 27. fxe5 (27. Bxe5 $2 Qd2 $19) 27... Qd2) 27. Re1 {[%emt 0:08:45]} (27. Bxh7+ $1 $14 Kxh7 28. Qh5+ (28. Nxf7 Qd5 $11) 28... Kg8 29. Qxf7+ (29. Nxf7 $2 Rxg2+ 30. Kxg2 Qd2+ 31. Kg3 Qxe3+ 32. Qf3 Qxc1 $19) 29... Kh7 30. Qg6+ Kg8 31. Qf7+) 27... Nd5 $2 {[%emt 0:02:24][%mdl 8192] [#]} (27... Nxa2 $2 28. Bxh7+ Kxh7 29. Qh5+ (29. Nxf7 Qc6 $14) 29... Kg8 30. Qxf7+ Kh7 31. Ng6 $18 (31. Qxa7 $2 Rd1 $19)) (27... Bd3 $15 {keeps the upper hand.} 28. Nxd3 Nxd3) 28. Bxh7+ $1 $18 {[%emt 0:00:14][%mdl 512]} Kxh7 {[%emt 0:00:12]} 29. Qh5+ {[%emt 0:00:03]} Kg8 {[%emt 0:00:09] ...Qc7 would now be deadly.} 30. Qxf7+ {[%emt 0:00:03]} Kh7 {[%emt 0:00:11] [#]} 31. Qg6+ {[%emt 0:05:08][%mdl 1024] White has strong compensation.} Kg8 {[%emt 0:00:03] [#]} 32. Qf7+ {[%emt 0:00:02]} (32. Bh4 $1 $18) 32... Kh7 $14 {[%emt 0:00:07]} 33. Nd7 {[%emt 0:00:02]} ({Better is} 33. Bh4 $1 $14) 33... Kh8 {[%emt 0:08:07]} (33... Nxe3 $1 $11 {keeps the balance.} 34. Nxf8+ Qxf8 35. Qxf8 Rxg2+ 36. Kh1 Bb7) 34. Be5 $16 {[%emt 0:01:38][%cal Od7f8] The board is on fire. White is more active.} (34. Qxf8+ $2 Qxf8 35. Nxf8 Nxf6 $19 (35... gxf6 $2 36. Nxe6 f5 37. Nxc5 $19)) 34... Qe7 {[%emt 0:00:02]} 35. Qxf8+ {[%emt 0:00:05][%csl Oe5] Strong Square White (e5)} Qxf8 {[%emt 0:00:07]} 36. Nxf8 {[%emt 0:00:01]} Nb4 {[%emt 0:00:35]} (36... Bc8 $16 {was worth a try.}) 37. Nxe6 $18 {[%emt 0:04:21]} Bb7 {[%emt 0:00:10]} 38. e4 $2 {[%emt 0:02:59]} (38. Nxg7 Nd3 (38... Rxg2+ 39. Kf1 $16) 39. Ne8+ (39. Ne6+ $2 Kg8 $19) 39... Kg8 $17) ({Resist} 38. Nxc5 Rxg2+ 39. Kf1 Bf3 $16) (38. Bxg7+ $18 Kg8 39. Bc3 (39. Nxc5 Rxg2+ 40. Kf1 Rxg7 $14) (39. e4 Nd3 $11) 39... Rxg2+ 40. Kf1 Nxa2 41. e4 (41. Nxc5 Nxc3 42. Nxb7 Rxh2 $16) 41... Rxh2 42. Be5 (42. Nxc5 Nxc3 43. Re3 Nxe4 $14) (42. Kg1 Rc2 $16) 42... Rh1+ 43. Kf2 Rxe1 44. Kxe1 Bxe4 45. Kd2 (45. Nxc5 Bd5 $16)) 38... Nd3 $11 {[%emt 0:00:09] The position is equal.} 39. Bc3 {[%emt 0:00:34]} Rc2 {[%emt 0:00:46]} 40. Bxg7+ {[%emt 0:00:21]} Kg8 {[%emt 0:00:01]} 41. Rd1 {[%emt 0:00:14]} Bxe4 {[%emt 0:00:19]} 42. Ng5 {[%emt 0:00:33]} Rxg2+ {[%emt 0:00:27]} 43. Kf1 {[%emt 0:00:01]} Rf2+ {[%emt 0:01:21]} 44. Kg1 {[%emt 0:00:00]} Rg2+ {Weighted Error Value: White=0.30/Black=0.30  Loses game:     	---       	Black=1      Missed win:     	White=2     	---        Mistake:       	White=4     	Black=4      Inaccurate:     	White=1     	---        OK:         	White=9     	Black=16     Best:        	White=4     	Black=7      Brilliant:      	White=1     	---} 1/2-1/2

[Event "SixDays Budapest January IM-B 2025"]
[Site "Budapest"]
[Date "2025.01.30"]
[Round "8.4"]
[White "Senthil Maran K"]
[Black "Tancsa, Tamas"]
[Result "1-0"]
[Annotator "TA"]
[ECO "E62"]
[WhiteElo "2398"]
[BlackElo "2192"]
[PlyCount "85"]
[EventDate "2025.01.24"]
[EventType "tourn"]
[EventCountry "HUN"]
[SourceTitle "playchess.com"]
[Source "ChessBase"]
[SourceQuality "1"]
[TimeControl "5400+30"]

{[%evp 15,85,58,47,0,39,39,32,28,35,0,2,6,35,25,19,20,23,18,13,12,15,17,16,0,21,6,21,0,16,0,31,30,56,6,12,16,51,51,94,91,118,113,235,227,216,222,404,395,507,479,450,233,922,914,1170,1062,29988,29989,29991,29991,29991,29992,29992,29993,29993,29993,29993,29994,29994,29995,29995,29996]} 1. d4 {[%emt 0:03:25]} Nf6 {[%emt 0:00:11]} 2. Nf3 {[%emt 0:00:05]} g6 {[%emt 0:00:03]} 3. g3 {[%emt 0:00:10]} Bg7 {[%emt 0:00:03]} 4. Bg2 {[%emt 0:00:09]} O-O {[%emt 0:00:08]} 5. O-O {[%emt 0:00:09]} d6 {[%emt 0:00:01]} 6. c4 {[%emt 0:00:11]} Nc6 {[%emt 0:00:03]} 7. Nc3 {[%emt 0:00:12]} e5 {[%emt 0:00:05]} 8. d5 {[%emt 0:00:20]} Nb8 {[%emt 0:00:12][%cal Bc6b8,Bb8d7,Bd7c5][%mdl 32] [#] is now more promising than 8...Ne7.} 9. c5 {[%emt 0:00:08] E62: King's Indian: Fianchetto: 6...c6 and Panno Variation (6...Nc6) without ...a6.} Nbd7 {[%emt 0:14:47]} 10. cxd6 {[%emt 0:01:24]} cxd6 {[%emt 0:01:10]} 11. Nd2 {[%emt 0:00:51] White is slightly better.} Ne8 {[%emt 0:11:00]} 12. Nc4 {[%emt 0:04:51]} f5 {[%emt 0:09:53]} 13. a4 {[%emt 0:02:33]} a5 {[%emt 0:00:46]} 14. Nb5 {[%emt 0:01:25]} Nc5 {[%emt 0:00:27]} 15. Be3 {[%emt 0:12:19]} b6 {[%emt 0:00:10]} 16. Ra3 {[%emt 0:00:31]} Ba6 {[%emt 0:06:34]} 17. Bxc5 {[%emt 0:03:27]} bxc5 {[%emt 0:01:02]} 18. Qd2 $146 {[%emt 0:00:42]} (18. e4 Rb8 19. Rb3 Qd7 20. Qc2 Bxb5 21. Rxb5 Rxb5 22. axb5 Nc7 23. b6 Na6 24. Ra1 fxe4 25. Rxa5 {1-0 Krunic,D (2116)-Bozanic,J (1934) EU-ch 23rd Vrnjacka Banja 2023 (10)}) 18... Bc8 {[%emt 0:18:42]} 19. Rb3 {[%emt 0:03:06]} Rf7 {[%emt 0:01:07]} 20. Ra1 {[%emt 0:03:14][%cal Bf1a1,Ba1a3,Ba3b3][%mdl 32]} Rb7 {[%emt 0:02:15]} 21. Raa3 {[%emt 0:00:47]} Bf8 {[%emt 0:01:00]} 22. e4 {[%emt 0:02:41]} f4 {[%emt 0:04:14]} 23. Qe2 {[%emt 0:02:49]} g5 {[%emt 0:02:47]} 24. Nc3 {[%emt 0:00:44] A dynamic duo of knights.} ({White should play} 24. gxf4 $1 $14 gxf4 25. Bh3) 24... Rb4 $11 {[%emt 0:03:09]} 25. Na2 {[%emt 0:00:31]} Rxb3 {[%emt 0:10:24]} 26. Rxb3 {[%emt 0:00:22]} Bd7 {[%emt 0:00:08]} 27. Nc3 {[%emt 0:01:36] White has more active pieces.} Nc7 {[%emt 0:05:22]} 28. Rb6 {[%emt 0:03:16]} Rb8 {[%emt 0:04:39] Loses the game.} (28... Ne8 $16 29. Bf1 fxg3) 29. Rxb8 $18 {[%emt 0:02:53]} Qxb8 {[%emt 0:00:03]} 30. Nxa5 {[%emt 0:00:15]} Bxa4 $2 {[%emt 0:00:14] [#]} (30... Qe8 31. Qc2 g4) 31. Nxa4 {[%emt 0:01:55]} Qb4 {[%emt 0:00:04]} 32. Nc6 {[%emt 0:02:04]} Qxa4 {[%emt 0:00:03]} 33. Bh3 {[%emt 0:01:40] Repels Ne6} (33. Qg4 $142) 33... h5 $2 {[%emt 0:02:38]} (33... h6 34. Kg2 Qa8) 34. Qxh5 {[%emt 0:00:57]} Qxe4 {[%emt 0:00:09]} 35. Qxg5+ {[%emt 0:00:12]} Kf7 {[%emt 0:03:26]} 36. Bf5 {[%emt 0:05:37][%csl Gf5][%cal Rg5g6] White mates.} Qe1+ {[%emt 0:00:06]} 37. Kg2 {[%emt 0:00:05][%csl Gf5][%cal Rg5g6]} f3+ {[%emt 0:00:07]} 38. Kh3 {[%emt 0:00:07][%csl Gf5][%cal Rg5g6]} Qf1+ {[%emt 0:00:18]} 39. Kh4 {[%emt 0:00:31][%csl Gf5][%cal Rg5g6]} Bg7 {[%emt 0:00:41]} 40. Bg6+ {[%emt 0:01:20]} Kg8 {[%emt 0:01:09]} 41. Qd8+ {[%emt 0:00:07]} Bf8 {[%emt 0:00:04]} 42. Qxc7 {[%emt 0:00:14][%csl Gg6][%cal Rc7h7]} Qc4+ {[%emt 0:00:13]} 43. Kh5 {[%emt 0:00:11] Weighted Error Value: White=0.12 (very precise) /Black=0.74  Mistake:       	White=2     	Black=3      Inaccurate:     	White=1     	Black=6      OK:         	White=9     	Black=5      Best:        	White=4     	Black=1} 1-0

[Event "SixDays Budapest January IM-B 2025"]
[Site "Budapest"]
[Date "2025.01.30"]
[Round "8.5"]
[White "Horvath, David"]
[Black "Papp, Bence"]
[Result "1/2-1/2"]
[Annotator "TA"]
[ECO "D37"]
[WhiteElo "2299"]
[BlackElo "2272"]
[PlyCount "30"]
[EventDate "2025.01.24"]
[EventType "tourn"]
[EventCountry "HUN"]
[SourceTitle "playchess.com"]
[Source "ChessBase"]
[SourceQuality "1"]
[TimeControl "5400+30"]

{[%evp 9,30,17,19,24,33,29,35,34,34,28,36,22,34,30,40,33,33,33,32,25,35,30,26]} 1. d4 {[%emt 0:00:03]} Nf6 {[%emt 0:00:07]} 2. c4 {[%emt 0:00:06]} e6 {[%emt 0:00:05]} 3. Nf3 {[%emt 0:00:11]} d5 {[%emt 0:00:05]} 4. Nc3 {[%emt 0:00:06]} a6 {[%emt 0:00:08]} 5. cxd5 {[%emt 0:00:13]} exd5 {[%emt 0:00:05]} 6. Bg5 {[%emt 0:00:25] D37: Queen's Gambit Declined: 5 Bf4.} Be6 {[%emt 0:00:07]} 7. e3 {[%emt 0:00:25]} Nbd7 {[%emt 0:00:22]} 8. Bd3 {[%emt 0:00:31] White is slightly better.} Bd6 {[%emt 0:00:08]} 9. h3 {[%emt 0:01:49]} c6 {[%emt 0:00:24]} 10. Bf4 {[%emt 0:00:46]} Qc7 {[%emt 0:01:13]} 11. Qd2 {[%emt 0:04:41]} h6 {[%emt 0:01:02]} 12. Bxd6 $146 {[%emt 0:05:41]} (12. b4 Bxf4 13. exf4 Nb6 14. f5 Ne4 15. Nxe4 dxe4 16. fxe6 exf3 17. exf7+ Qxf7 18. Qe3+ {½-½ Navara,D (2703)-Mamedyarov,S (2772) Bundesliga 1920 2019 (11.1)}) 12... Qxd6 {[%emt 0:00:02]} 13. Rc1 {[%emt 0:02:39]} O-O {[%emt 0:00:54]} 14. O-O {[%emt 0:00:05]} Rfe8 {[%emt 0:00:39]} 15. Rfe1 {[%emt 0:08:18]} Rac8 {[%emt 0:04:54] Weighted Error Value: White=0.03 (flawless) /Black=0.04 (flawless)   OK:         	White=4     	Black=5} 1/2-1/2